[Event "Late-Titled-Tuesday-Blitz-February-06-2024"]
[Site "Chess.com"]
[Date "2024.02.06"]
[Round "8"]
[White "Chessdreamer2020"]
[Black "Eloist"]
[Result "0-1"]
[WhiteElo "2542"]
[BlackElo "2450"]
[TimeControl "180+1"]
[EndTime "15:29:26 PST"]
[Termination "Eloist won on time"]

1. e4 {[%clk 0:02:59.1]} 1... e6 {[%clk 0:02:59.9]} 2. d4 {[%clk 0:02:58.7]}
2... d5 {[%clk 0:03:00.1]} 3. Nd2 {[%clk 0:02:59.6]} 3... c5 {[%clk 0:02:59.6]}
4. exd5 {[%clk 0:02:59.7]} 4... Qxd5 {[%clk 0:02:59]} 5. Ngf3 {[%clk 0:03:00]}
5... cxd4 {[%clk 0:02:58.9]} 6. Bc4 {[%clk 0:03:00.5]} 6... Qd6 {[%clk
0:02:58.5]} 7. Nb3 {[%clk 0:02:53.8]} 7... Qb4+ {[%clk 0:02:57.4]} 8. Nbd2
{[%clk 0:02:50.6]} 8... Nc6 {[%clk 0:02:55.9]} 9. a3 {[%clk 0:02:50.7]} 9... Qb6
{[%clk 0:02:48.1]} 10. b4 {[%clk 0:02:42]} 10... Nf6 {[%clk 0:02:46.5]} 11. Nb3
{[%clk 0:02:42.2]} 11... Be7 {[%clk 0:02:33]} 12. Nbxd4 {[%clk 0:02:40.3]} 12...
Nxd4 {[%clk 0:02:30.9]} 13. Qxd4 {[%clk 0:02:38.7]} 13... Qxd4 {[%clk
0:02:29.5]} 14. Nxd4 {[%clk 0:02:39.4]} 14... O-O {[%clk 0:02:27]} 15. O-O
{[%clk 0:02:36]} 15... Bd7 {[%clk 0:02:18.7]} 16. Bb3 {[%clk 0:02:33.1]} 16...
a5 {[%clk 0:02:08.3]} 17. Bd2 {[%clk 0:02:28.7]} 17... Ne4 {[%clk 0:01:59]} 18.
Be1 {[%clk 0:02:27.2]} 18... axb4 {[%clk 0:01:57.7]} 19. f3 {[%clk 0:02:23.4]}
19... Bc5 {[%clk 0:01:49.6]} 20. Rd1 {[%clk 0:02:23]} 20... Nc3 {[%clk
0:01:38.3]} 21. Bxc3 {[%clk 0:02:22.8]} 21... bxc3 {[%clk 0:01:37.9]} 22. Kh1
{[%clk 0:02:23.7]} 22... Rxa3 {[%clk 0:01:34.6]} 23. Rfe1 {[%clk 0:02:06.7]}
23... Ba4 {[%clk 0:01:23.5]} 24. Bxa4 {[%clk 0:02:04.6]} 24... Rxa4 {[%clk
0:01:23.1]} 25. Nb5 {[%clk 0:02:03.8]} 25... Ra2 {[%clk 0:01:16.7]} 26. Re2
{[%clk 0:02:00.8]} 26... Bb4 {[%clk 0:01:10.3]} 27. h3 {[%clk 0:01:56.5]} 27...
Ra5 {[%clk 0:00:28.8]} 28. Nc7 {[%clk 0:00:15.5]} 28... Rc5 {[%clk 0:00:21.9]}
29. Rd7 {[%clk 0:00:15.2]} 29... Rc8 {[%clk 0:00:20.8]} 30. Re4 {[%clk
0:00:13.3]} 30... Ba5 {[%clk 0:00:18.2]} 31. Nxe6 {[%clk 0:00:07.1]} 31... fxe6
{[%clk 0:00:17.7]} 32. Rxe6 {[%clk 0:00:08]} 32... R5c7 {[%clk 0:00:17.4]} 33.
Rd5 {[%clk 0:00:07.3]} 33... b6 {[%clk 0:00:16.3]} 34. Re4 {[%clk 0:00:04]}
34... h6 {[%clk 0:00:13.8]} 35. Kh2 {[%clk 0:00:03.2]} 35... Rf7 {[%clk
0:00:13.7]} 36. h4 {[%clk 0:00:02.7]} 36... Kf8 {[%clk 0:00:13.7]} 37. h5 {[%clk
0:00:02.7]} 37... Re7 {[%clk 0:00:13.9]} 38. Rf4+ {[%clk 0:00:02.7]} 38... Ke8
{[%clk 0:00:14.1]} 39. Rg4 {[%clk 0:00:02.6]} 39... Rc5 {[%clk 0:00:13.4]} 40.
Rd1 {[%clk 0:00:02.2]} 40... Rxh5+ {[%clk 0:00:12.8]} 41. Kg3 {[%clk 0:00:02.1]}
41... Rhe5 {[%clk 0:00:12.9]} 42. Rdd4 {[%clk 0:00:01.8]} 42... Re2 {[%clk
0:00:11.8]} 0-1

[Event "Late-Titled-Tuesday-Blitz-February-06-2024"]
[Site "Chess.com"]
[Date "2024.02.06"]
[Round "8"]
[White "Dinamo3"]
[Black "Doublekk14"]
[Result "1-0"]
[WhiteElo "2505"]
[BlackElo "2306"]
[TimeControl "180+1"]
[EndTime "15:29:27 PST"]
[Termination "Dinamo3 won on time"]

1. c4 {[%clk 0:02:41.3]} 1... c5 {[%clk 0:02:55.5]} 2. g3 {[%clk 0:02:40.8]}
2... Nc6 {[%clk 0:02:55.3]} 3. Bg2 {[%clk 0:02:41.1]} 3... e6 {[%clk 0:02:56.2]}
4. Nc3 {[%clk 0:02:41.1]} 4... Nf6 {[%clk 0:02:56]} 5. Nf3 {[%clk 0:02:36.6]}
5... d5 {[%clk 0:02:54.7]} 6. cxd5 {[%clk 0:02:36.6]} 6... exd5 {[%clk
0:02:54.6]} 7. d4 {[%clk 0:02:36.9]} 7... h6 {[%clk 0:02:54.4]} 8. O-O {[%clk
0:02:35.4]} 8... Be7 {[%clk 0:02:53.3]} 9. dxc5 {[%clk 0:02:34.2]} 9... Bxc5
{[%clk 0:02:52.7]} 10. b3 {[%clk 0:02:28.1]} 10... O-O {[%clk 0:02:50.8]} 11.
Bb2 {[%clk 0:02:28.4]} 11... Be6 {[%clk 0:02:51.1]} 12. Na4 {[%clk 0:02:27.7]}
12... Be7 {[%clk 0:02:45.1]} 13. Nd4 {[%clk 0:02:27.7]} 13... Qd7 {[%clk
0:02:33.3]} 14. Rc1 {[%clk 0:02:26.6]} 14... Rac8 {[%clk 0:02:17.1]} 15. Nc5
{[%clk 0:02:15.6]} 15... Bxc5 {[%clk 0:02:14.4]} 16. Rxc5 {[%clk 0:02:16.5]}
16... Ne4 {[%clk 0:01:48.3]} 17. Rc1 {[%clk 0:01:59.8]} 17... Bh3 {[%clk
0:01:40.5]} 18. Nxc6 {[%clk 0:01:39.1]} 18... bxc6 {[%clk 0:01:11.4]} 19. Qd4
{[%clk 0:01:24.1]} 19... Nf6 {[%clk 0:01:05.4]} 20. Rfd1 {[%clk 0:01:16.4]}
20... Bxg2 {[%clk 0:01:03.7]} 21. Kxg2 {[%clk 0:01:16.7]} 21... Rfe8 {[%clk
0:01:03.9]} 22. e3 {[%clk 0:01:15.4]} 22... Qf5 {[%clk 0:00:45.8]} 23. h3 {[%clk
0:01:05.3]} 23... h5 {[%clk 0:00:38.6]} 24. b4 {[%clk 0:00:50.8]} 24... a6
{[%clk 0:00:34.6]} 25. a3 {[%clk 0:00:50.6]} 25... Re4 {[%clk 0:00:34.2]} 26.
Qd2 {[%clk 0:00:48]} 26... h4 {[%clk 0:00:29.8]} 27. g4 {[%clk 0:00:41.6]} 27...
Nxg4 {[%clk 0:00:27.5]} 28. hxg4 {[%clk 0:00:37.8]} 28... h3+ {[%clk 0:00:20.7]}
29. Kh2 {[%clk 0:00:29.9]} 29... Rxg4 {[%clk 0:00:14.9]} 30. Rg1 {[%clk
0:00:29.6]} 30... Rg2+ {[%clk 0:00:08.1]} 31. Rxg2 {[%clk 0:00:27.8]} 31... hxg2
{[%clk 0:00:08.1]} 32. Qd4 {[%clk 0:00:12.8]} 32... f6 {[%clk 0:00:07.9]} 33.
Kxg2 {[%clk 0:00:12.6]} 33... Kf7 {[%clk 0:00:05.2]} 34. Kf1 {[%clk 0:00:12.1]}
34... Rh8 {[%clk 0:00:04.9]} 35. Ke2 {[%clk 0:00:12.5]} 35... Rh2 {[%clk
0:00:03.9]} 36. Rf1 {[%clk 0:00:12.2]} 36... Qh5+ {[%clk 0:00:04.1]} 37. Ke1
{[%clk 0:00:12.1]} 37... Rh4 {[%clk 0:00:02.9]} 38. Qc5 {[%clk 0:00:10.6]} 38...
Kg6 {[%clk 0:00:02.8]} 39. Qc2+ {[%clk 0:00:08.7]} 39... f5 {[%clk 0:00:02.5]}
40. Bd4 {[%clk 0:00:08.9]} 40... Re4 {[%clk 0:00:01.8]} 41. Qxc6+ {[%clk
0:00:09]} 41... Kg5 {[%clk 0:00:01.4]} 42. Qxd5 {[%clk 0:00:09.4]} 42... Kh4
{[%clk 0:00:02.3]} 43. Qd8+ {[%clk 0:00:08.7]} 43... g5 {[%clk 0:00:02]} 44.
Rh1+ {[%clk 0:00:08.6]} 44... Kg4 {[%clk 0:00:01.9]} 45. Rxh5 {[%clk 0:00:08.9]}
1-0

[Event "Late-Titled-Tuesday-Blitz-February-06-2024"]
[Site "Chess.com"]
[Date "2024.02.06"]
[Round "8"]
[White "Escanor89"]
[Black "Hui_Li_Macau"]
[Result "1-0"]
[WhiteElo "2519"]
[BlackElo "2364"]
[TimeControl "180+1"]
[EndTime "15:29:30 PST"]
[Termination "Escanor89 won on time"]

1. e4 {[%clk 0:03:00.9]} 1... e5 {[%clk 0:03:00]} 2. Nf3 {[%clk 0:03:00.6]} 2...
Nf6 {[%clk 0:03:00.6]} 3. Nc3 {[%clk 0:02:59.4]} 3... Nc6 {[%clk 0:03:00.2]} 4.
d4 {[%clk 0:02:59.7]} 4... exd4 {[%clk 0:03:01.1]} 5. Nxd4 {[%clk 0:03:00.1]}
5... Bb4 {[%clk 0:03:01.7]} 6. Nxc6 {[%clk 0:03:00.2]} 6... bxc6 {[%clk
0:03:02.6]} 7. Bd3 {[%clk 0:02:59.5]} 7... O-O {[%clk 0:03:03]} 8. O-O {[%clk
0:02:56.4]} 8... d5 {[%clk 0:03:03]} 9. exd5 {[%clk 0:02:55.5]} 9... cxd5 {[%clk
0:03:03.9]} 10. h3 {[%clk 0:02:55.8]} 10... c6 {[%clk 0:03:03.8]} 11. Qf3 {[%clk
0:02:55.5]} 11... Bd6 {[%clk 0:03:03.7]} 12. Re1 {[%clk 0:02:54]} 12... h6
{[%clk 0:02:56.9]} 13. Bf4 {[%clk 0:02:53.3]} 13... Rb8 {[%clk 0:02:52.9]} 14.
b3 {[%clk 0:02:49.5]} 14... Rb4 {[%clk 0:02:50.8]} 15. Bxd6 {[%clk 0:02:48.5]}
15... Qxd6 {[%clk 0:02:51.7]} 16. Qe3 {[%clk 0:02:40.8]} 16... c5 {[%clk
0:02:26.1]} 17. Qe7 {[%clk 0:02:26.1]} 17... Qxe7 {[%clk 0:02:18.1]} 18. Rxe7
{[%clk 0:02:27]} 18... Rb7 {[%clk 0:02:04.6]} 19. Rae1 {[%clk 0:02:24.2]} 19...
a5 {[%clk 0:01:51.4]} 20. Na4 {[%clk 0:02:07.9]} 20... c4 {[%clk 0:01:41.5]} 21.
bxc4 {[%clk 0:02:07.5]} 21... dxc4 {[%clk 0:01:40.4]} 22. Bxc4 {[%clk
0:02:05.8]} 22... Rb4 {[%clk 0:01:25]} 23. Bb3 {[%clk 0:02:04.6]} 23... Bf5
{[%clk 0:01:18.8]} 24. Nc5 {[%clk 0:01:50.3]} 24... Kh8 {[%clk 0:01:08.3]} 25.
Ra7 {[%clk 0:01:24.9]} 25... Bxc2 {[%clk 0:00:57.1]} 26. Bxc2 {[%clk 0:01:13.3]}
26... Rc4 {[%clk 0:00:56.6]} 27. Bb3 {[%clk 0:01:06.1]} 27... Rxc5 {[%clk
0:00:56]} 28. Ree7 {[%clk 0:01:02]} 28... Nd5 {[%clk 0:00:47.5]} 29. Rxf7 {[%clk
0:00:58.4]} 29... Rxf7 {[%clk 0:00:46.8]} 30. Rxf7 {[%clk 0:00:59.3]} 30... Nc3
{[%clk 0:00:42.7]} 31. Ra7 {[%clk 0:00:54.3]} 31... h5 {[%clk 0:00:33.2]} 32. h4
{[%clk 0:00:53.3]} 32... Re5 {[%clk 0:00:24.5]} 33. g3 {[%clk 0:00:52.2]} 33...
Kh7 {[%clk 0:00:21.4]} 34. Kg2 {[%clk 0:00:48.7]} 34... Kh6 {[%clk 0:00:18.8]}
35. Ra6+ {[%clk 0:00:48]} 35... Kh7 {[%clk 0:00:17.8]} 36. Bc2+ {[%clk
0:00:47.8]} 36... Kg8 {[%clk 0:00:15.1]} 37. Bg6 {[%clk 0:00:45.8]} 37... Kf8
{[%clk 0:00:09.3]} 38. a3 {[%clk 0:00:43.2]} 38... Rc5 {[%clk 0:00:02.4]} 39.
Ra8+ {[%clk 0:00:34.1]} 39... Ke7 {[%clk 0:00:02.3]} 40. Rh8 {[%clk 0:00:34.7]}
40... Kf6 {[%clk 0:00:01.5]} 41. Bxh5 {[%clk 0:00:28.7]} 41... g6 {[%clk
0:00:01.4]} 42. Bf3 {[%clk 0:00:26.9]} 42... Nb5 {[%clk 0:00:01.6]} 43. a4
{[%clk 0:00:22.3]} 43... Nd4 {[%clk 0:00:01.2]} 44. Ra8 {[%clk 0:00:20.7]} 44...
Kg7 {[%clk 0:00:01.2]} 45. Ra6 {[%clk 0:00:20.2]} 45... Rc4 {[%clk 0:00:01.2]}
46. Be4 {[%clk 0:00:19.9]} 1-0

[Event "Late-Titled-Tuesday-Blitz-February-06-2024"]
[Site "Chess.com"]
[Date "2024.02.06"]
[Round "8"]
[White "GAusal"]
[Black "cthake"]
[Result "0-1"]
[WhiteElo "2277"]
[BlackElo "1835"]
[TimeControl "180+1"]
[EndTime "15:29:31 PST"]
[Termination "cthake won by resignation"]

1. d4 {[%clk 0:02:58]} 1... f5 {[%clk 0:02:53.9]} 2. g3 {[%clk 0:02:53.6]} 2...
Nf6 {[%clk 0:02:53.5]} 3. Bg2 {[%clk 0:02:53.8]} 3... g6 {[%clk 0:02:49.5]} 4.
Nh3 {[%clk 0:02:53.6]} 4... Bg7 {[%clk 0:02:49.2]} 5. O-O {[%clk 0:02:53.6]}
5... O-O {[%clk 0:02:48.9]} 6. c4 {[%clk 0:02:52.7]} 6... d6 {[%clk 0:02:48.5]}
7. Nc3 {[%clk 0:02:52.7]} 7... e5 {[%clk 0:02:22.5]} 8. dxe5 {[%clk 0:02:46.8]}
8... dxe5 {[%clk 0:02:22.5]} 9. Qb3 {[%clk 0:02:43.6]} 9... Nc6 {[%clk
0:02:12.9]} 10. Bg5 {[%clk 0:02:39.9]} 10... Nd4 {[%clk 0:01:59.9]} 11. Qd1
{[%clk 0:02:29]} 11... Qe7 {[%clk 0:01:50.4]} 12. Nd5 {[%clk 0:02:27.8]} 12...
Qd6 {[%clk 0:01:25]} 13. Bxf6 {[%clk 0:02:24]} 13... Bxf6 {[%clk 0:01:23.8]} 14.
Nxf6+ {[%clk 0:02:21.4]} 14... Qxf6 {[%clk 0:01:15.2]} 15. e3 {[%clk 0:02:08.3]}
15... Nc6 {[%clk 0:01:13.6]} 16. Qb3 {[%clk 0:02:03.2]} 16... Kh8 {[%clk
0:01:05.3]} 17. Rfd1 {[%clk 0:01:55.1]} 17... Rd8 {[%clk 0:00:54.3]} 18. Rxd8+
{[%clk 0:01:52.6]} 18... Qxd8 {[%clk 0:00:53.6]} 19. Rd1 {[%clk 0:01:52.9]}
19... Qe7 {[%clk 0:00:49.4]} 20. Kh1 {[%clk 0:01:40.9]} 20... Rb8 {[%clk
0:00:34.9]} 21. Ng1 {[%clk 0:01:40]} 21... Bd7 {[%clk 0:00:28.2]} 22. Nf3 {[%clk
0:01:31.8]} 22... e4 {[%clk 0:00:23]} 23. Qc3+ {[%clk 0:01:26.8]} 23... Kg8
{[%clk 0:00:23]} 24. Nd4 {[%clk 0:01:26.5]} 24... Nxd4 {[%clk 0:00:20.2]} 25.
Qxd4 {[%clk 0:01:24.1]} 25... Bc6 {[%clk 0:00:20.1]} 26. h4 {[%clk 0:01:19.1]}
26... a6 {[%clk 0:00:18.2]} 27. a3 {[%clk 0:01:17.7]} 27... Re8 {[%clk
0:00:17.8]} 28. b4 {[%clk 0:01:16.5]} 28... b6 {[%clk 0:00:16.4]} 29. Kh2 {[%clk
0:01:08.4]} 29... Qe5 {[%clk 0:00:16]} 30. Qxe5 {[%clk 0:01:03.8]} 30... Rxe5
{[%clk 0:00:16]} 31. Rd8+ {[%clk 0:01:03.7]} 31... Kg7 {[%clk 0:00:15.4]} 32.
Rd4 {[%clk 0:00:58.1]} 32... Re7 {[%clk 0:00:14.9]} 33. Kg1 {[%clk 0:00:56]}
33... Rd7 {[%clk 0:00:14.9]} 34. Rxd7+ {[%clk 0:00:49.6]} 34... Bxd7 {[%clk
0:00:15.1]} 35. Kf1 {[%clk 0:00:49.8]} 35... Kf6 {[%clk 0:00:15.2]} 36. Ke2
{[%clk 0:00:49.7]} 36... Ke5 {[%clk 0:00:15.4]} 37. Kd2 {[%clk 0:00:49.7]} 37...
c5 {[%clk 0:00:15.6]} 38. Kc3 {[%clk 0:00:49.3]} 38... Bc6 {[%clk 0:00:14.7]}
39. Bf1 {[%clk 0:00:45.5]} 39... h6 {[%clk 0:00:13.1]} 40. Be2 {[%clk
0:00:45.1]} 40... g5 {[%clk 0:00:12.9]} 41. hxg5 {[%clk 0:00:45.3]} 41... hxg5
{[%clk 0:00:13.2]} 42. Bh5 {[%clk 0:00:45.5]} 42... f4 {[%clk 0:00:12.8]} 43.
gxf4+ {[%clk 0:00:41.1]} 43... gxf4 {[%clk 0:00:13]} 44. Bf7 {[%clk 0:00:35.2]}
44... fxe3 {[%clk 0:00:11.8]} 45. fxe3 {[%clk 0:00:34.5]} 45... cxb4+ {[%clk
0:00:10.5]} 46. axb4 {[%clk 0:00:33.8]} 46... Ba4 {[%clk 0:00:10]} 47. Bd5
{[%clk 0:00:27.6]} 47... a5 {[%clk 0:00:09.8]} 48. bxa5 {[%clk 0:00:20.1]} 48...
bxa5 {[%clk 0:00:09.3]} 49. c5 {[%clk 0:00:20.4]} 49... Kxd5 {[%clk 0:00:08.3]}
50. c6 {[%clk 0:00:16.3]} 50... Bxc6 {[%clk 0:00:05.6]} 0-1

[Event "Late-Titled-Tuesday-Blitz-February-06-2024"]
[Site "Chess.com"]
[Date "2024.02.06"]
[Round "8"]
[White "Jarrahi2452"]
[Black "Njal28"]
[Result "1-0"]
[WhiteElo "2812"]
[BlackElo "2992"]
[TimeControl "180+1"]
[EndTime "15:29:44 PST"]
[Termination "Jarrahi2452 won on time"]

1. d4 {[%clk 0:03:00.9]} 1... Nf6 {[%clk 0:03:00.4]} 2. Bf4 {[%clk 0:03:00.5]}
2... d5 {[%clk 0:02:57.5]} 3. e3 {[%clk 0:03:00.4]} 3... Bg4 {[%clk 0:02:56.5]}
4. Nf3 {[%clk 0:02:56.8]} 4... e6 {[%clk 0:02:56.3]} 5. Nbd2 {[%clk 0:02:55]}
5... c5 {[%clk 0:02:56.4]} 6. c3 {[%clk 0:02:54.9]} 6... Nc6 {[%clk 0:02:56.4]}
7. h3 {[%clk 0:02:52.2]} 7... Bh5 {[%clk 0:02:55.8]} 8. Bd3 {[%clk 0:02:49.2]}
8... Bd6 {[%clk 0:02:53.7]} 9. Bxd6 {[%clk 0:02:46.8]} 9... Qxd6 {[%clk
0:02:54.6]} 10. O-O {[%clk 0:02:47.2]} 10... O-O {[%clk 0:02:54.5]} 11. a4
{[%clk 0:02:43.8]} 11... Rad8 {[%clk 0:02:50.5]} 12. Qb1 {[%clk 0:02:35]} 12...
Rfe8 {[%clk 0:02:49.5]} 13. dxc5 {[%clk 0:02:28]} 13... Qxc5 {[%clk 0:02:49.6]}
14. e4 {[%clk 0:02:28.3]} 14... Bxf3 {[%clk 0:02:34]} 15. Nxf3 {[%clk
0:02:26.2]} 15... d4 {[%clk 0:02:34.6]} 16. Rc1 {[%clk 0:02:08.1]} 16... Qh5
{[%clk 0:02:17.9]} 17. b4 {[%clk 0:02:00.5]} 17... Ne5 {[%clk 0:02:05.1]} 18.
Nxe5 {[%clk 0:01:59.1]} 18... Qxe5 {[%clk 0:02:06]} 19. c4 {[%clk 0:01:58]}
19... Nh5 {[%clk 0:02:01.6]} 20. c5 {[%clk 0:01:47.3]} 20... Nf4 {[%clk
0:02:01]} 21. b5 {[%clk 0:01:41.5]} 21... Qg5 {[%clk 0:01:55.2]} 22. g3 {[%clk
0:01:39.9]} 22... Nxh3+ {[%clk 0:01:52.2]} 23. Kg2 {[%clk 0:01:39.4]} 23... Nf4+
{[%clk 0:01:49.5]} 24. Kf1 {[%clk 0:01:38.5]} 24... Ng6 {[%clk 0:01:21.1]} 25.
c6 {[%clk 0:01:37]} 25... b6 {[%clk 0:01:20.9]} 26. a5 {[%clk 0:01:34.9]} 26...
h5 {[%clk 0:01:20.8]} 27. axb6 {[%clk 0:01:21.7]} 27... axb6 {[%clk 0:01:21.7]}
28. Qc2 {[%clk 0:01:06.8]} 28... h4 {[%clk 0:01:16.9]} 29. gxh4 {[%clk
0:01:00.1]} 29... Qxh4 {[%clk 0:01:15.9]} 30. Ke1 {[%clk 0:00:53.9]} 30... Nf4
{[%clk 0:01:13.5]} 31. c7 {[%clk 0:00:47.2]} 31... Rc8 {[%clk 0:01:11.1]} 32.
Bf1 {[%clk 0:00:45.5]} 32... d3 {[%clk 0:00:58.3]} 33. Qc6 {[%clk 0:00:40.5]}
33... d2+ {[%clk 0:00:53.7]} 34. Kxd2 {[%clk 0:00:37.8]} 34... Qxf2+ {[%clk
0:00:54.1]} 35. Kc3 {[%clk 0:00:37.2]} 35... Qe3+ {[%clk 0:00:43.4]} 36. Kb2
{[%clk 0:00:36.1]} 36... Qd2+ {[%clk 0:00:43.8]} 37. Rc2 {[%clk 0:00:33.9]}
37... Qb4+ {[%clk 0:00:43.7]} 38. Kc1 {[%clk 0:00:32.5]} 38... Rf8 {[%clk
0:00:18.5]} 39. Qxb6 {[%clk 0:00:29.1]} 39... Qxe4 {[%clk 0:00:13.7]} 40. Qc6
{[%clk 0:00:25.9]} 40... Qe1+ {[%clk 0:00:13.5]} 41. Kb2 {[%clk 0:00:26]} 41...
Qb4+ {[%clk 0:00:14.1]} 42. Kc1 {[%clk 0:00:25.8]} 42... Nd5 {[%clk 0:00:14.8]}
43. b6 {[%clk 0:00:23.7]} 43... Qe1+ {[%clk 0:00:13.1]} 44. Kb2 {[%clk
0:00:22.5]} 44... Qb4+ {[%clk 0:00:14]} 45. Kc1 {[%clk 0:00:22.5]} 45... Nxb6
{[%clk 0:00:14.3]} 46. Ba6 {[%clk 0:00:21.1]} 46... Qe1+ {[%clk 0:00:12.4]} 47.
Kb2 {[%clk 0:00:19.9]} 47... Qb4+ {[%clk 0:00:13.3]} 48. Kc1 {[%clk 0:00:20.1]}
48... Nd5 {[%clk 0:00:04.8]} 49. Bxc8 {[%clk 0:00:18]} 49... Qe1+ {[%clk
0:00:05.2]} 50. Kb2 {[%clk 0:00:18]} 50... Qb4+ {[%clk 0:00:05.6]} 51. Kc1
{[%clk 0:00:17.7]} 51... Rxc8 {[%clk 0:00:06]} 52. Ra8 {[%clk 0:00:14.6]} 52...
Qe1+ {[%clk 0:00:04.5]} 53. Kb2 {[%clk 0:00:14.9]} 53... Qb4+ {[%clk 0:00:03.1]}
54. Ka2 {[%clk 0:00:14.9]} 1-0

[Event "Late-Titled-Tuesday-Blitz-February-06-2024"]
[Site "Chess.com"]
[Date "2024.02.06"]
[Round "8"]
[White "Balla_Tamas"]
[Black "Ducke13"]
[Result "0-1"]
[WhiteElo "2394"]
[BlackElo "2310"]
[TimeControl "180+1"]
[EndTime "15:29:44 PST"]
[Termination "Ducke13 won by checkmate"]

1. e4 {[%clk 0:03:00.9]} 1... c5 {[%clk 0:02:58.6]} 2. c3 {[%clk 0:03:01]} 2...
d5 {[%clk 0:02:54.1]} 3. exd5 {[%clk 0:03:01.2]} 3... Qxd5 {[%clk 0:02:54.8]} 4.
d4 {[%clk 0:03:01.3]} 4... Nc6 {[%clk 0:02:54.1]} 5. Nf3 {[%clk 0:03:01.8]} 5...
cxd4 {[%clk 0:02:51]} 6. cxd4 {[%clk 0:03:01.5]} 6... Bf5 {[%clk 0:02:46.7]} 7.
Nc3 {[%clk 0:03:00.8]} 7... Qd7 {[%clk 0:02:40.4]} 8. d5 {[%clk 0:03:00.7]} 8...
O-O-O {[%clk 0:02:14.2]} 9. dxc6 {[%clk 0:02:55.1]} 9... Qxc6 {[%clk 0:02:07.4]}
10. Qb3 {[%clk 0:02:48]} 10... e5 {[%clk 0:02:03.4]} 11. Bb5 {[%clk 0:02:47.5]}
11... Qc7 {[%clk 0:01:56.1]} 12. O-O {[%clk 0:02:45.1]} 12... Nf6 {[%clk
0:01:55]} 13. Bg5 {[%clk 0:02:43.1]} 13... e4 {[%clk 0:01:51.5]} 14. Rac1 {[%clk
0:02:30.7]} 14... Bc5 {[%clk 0:01:14.1]} 15. Bxf6 {[%clk 0:02:21.4]} 15... gxf6
{[%clk 0:01:10.9]} 16. Nd5 {[%clk 0:02:19.9]} 16... Qd6 {[%clk 0:00:49.3]} 17.
Nd4 {[%clk 0:01:55.5]} 17... Qxd5 {[%clk 0:00:46.9]} 18. Qxd5 {[%clk 0:01:52.9]}
18... Rxd5 {[%clk 0:00:46.5]} 19. Nxf5 {[%clk 0:01:53.6]} 19... Rxf5 {[%clk
0:00:39.2]} 20. b4 {[%clk 0:01:54.1]} 20... b6 {[%clk 0:00:30.9]} 21. bxc5
{[%clk 0:01:53.7]} 21... bxc5 {[%clk 0:00:31]} 22. Rfe1 {[%clk 0:01:53.3]} 22...
Re5 {[%clk 0:00:29.8]} 23. Rc4 {[%clk 0:01:52.8]} 23... f5 {[%clk 0:00:28.4]}
24. Rec1 {[%clk 0:01:53]} 24... Kb7 {[%clk 0:00:22]} 25. Rxc5 {[%clk 0:01:51.2]}
25... Rxc5 {[%clk 0:00:22.9]} 26. Rxc5 {[%clk 0:01:51.7]} 26... f4 {[%clk
0:00:23.4]} 27. h3 {[%clk 0:01:50.6]} 27... Kb6 {[%clk 0:00:20.2]} 28. Rf5
{[%clk 0:01:50.2]} 28... e3 {[%clk 0:00:19.7]} 29. fxe3 {[%clk 0:01:45.7]} 29...
fxe3 {[%clk 0:00:20.6]} 30. Re5 {[%clk 0:01:45.5]} 30... f6 {[%clk 0:00:16.7]}
31. Rf5 {[%clk 0:01:43.9]} 31... Rd8 {[%clk 0:00:15.4]} 32. Kf1 {[%clk
0:01:41.7]} 32... Rd2 {[%clk 0:00:13]} 33. Be2 {[%clk 0:01:37.4]} 33... Rxa2
{[%clk 0:00:12.4]} 34. Rxf6+ {[%clk 0:01:37.6]} 34... Kc5 {[%clk 0:00:12.5]} 35.
Bf3 {[%clk 0:01:38.1]} 35... a5 {[%clk 0:00:10.1]} 36. Re6 {[%clk 0:01:37.5]}
36... Kd4 {[%clk 0:00:10]} 37. Re4+ {[%clk 0:01:37.9]} 37... Kd3 {[%clk
0:00:10.3]} 38. Kg1 {[%clk 0:00:31.6]} 38... a4 {[%clk 0:00:10.5]} 39. Kh2
{[%clk 0:00:30.5]} 39... a3 {[%clk 0:00:10.6]} 40. Re7 {[%clk 0:00:28.6]} 40...
Rf2 {[%clk 0:00:08.5]} 41. Rd7+ {[%clk 0:00:28.4]} 41... Kc3 {[%clk 0:00:08.8]}
42. Rc7+ {[%clk 0:00:27.9]} 42... Kb2 {[%clk 0:00:09]} 43. Kg3 {[%clk
0:00:27.4]} 43... a2 {[%clk 0:00:08.6]} 44. Rb7+ {[%clk 0:00:27.8]} 44... Kc1
{[%clk 0:00:08.6]} 45. Ra7 {[%clk 0:00:23.2]} 45... Rc2 {[%clk 0:00:07.8]} 46.
Kf4 {[%clk 0:00:20.4]} 46... e2 {[%clk 0:00:07.5]} 47. Be4 {[%clk 0:00:06.9]}
47... e1=Q {[%clk 0:00:07.2]} 48. Bxc2 {[%clk 0:00:07.2]} 48... Kxc2 {[%clk
0:00:07.7]} 49. Rxa2+ {[%clk 0:00:07.4]} 49... Kb3 {[%clk 0:00:08.1]} 50. Ra7
{[%clk 0:00:02.3]} 50... Qd2+ {[%clk 0:00:07]} 51. Kg4 {[%clk 0:00:02.6]} 51...
Qd4+ {[%clk 0:00:07.2]} 52. Kh5 {[%clk 0:00:02.8]} 52... Qxa7 {[%clk 0:00:08.1]}
53. g4 {[%clk 0:00:03.7]} 53... Qg7 {[%clk 0:00:08.2]} 54. h4 {[%clk 0:00:04.6]}
54... Qg6# {[%clk 0:00:08.6]} 0-1